bitfinex/quotes_BTCUSD_20241107
["timestamp","ask_amount","ask_price","bid_price","bid_amount"]
[1731020687205,0.03260252,75811.0,75810.0,0.0864]
[1731020687681,0.01224357,75811.0,75810.0,0.0567452]
[1731020687934,0.01224357,75811.0,75810.0,0.19898622]
[1731020688186,0.01224357,75811.0,75810.0,0.24728622]
[1731020689124,0.01224357,75811.0,75810.0,0.24178622]
[1731020689369,0.01224357,75811.0,75810.0,0.24678622]
[1731020690303,0.01224357,75811.0,75810.0,0.24878622]
[1731020690532,0.01224357,75811.0,75810.0,0.27366484]
[1731020691457,0.681908,75834.0,75821.0,0.017]
[1731020691458,0.02043086,75823.0,75821.0,0.017]
[1731020691703,0.02043086,75829.0,75825.0,0.015]
[1731020691924,0.02043086,75830.0,75829.0,0.01]
[1731020692140,0.681908,75847.0,75829.0,0.01]
[1731020692141,0.681908,75847.0,75830.0,0.0862]
[1731020692385,0.02045974,75832.0,75831.0,0.13724102]
[1731020692649,0.681908,75847.0,75832.0,0.005]
[1731020692912,0.01228078,75835.0,75832.0,0.005]
[1731020693134,0.0122808,75834.0,75832.0,0.005]
[1731020693398,0.0122808,75833.0,75832.0,0.005]
[1731020694937,0.0122808,75833.0,75828.0,0.005]
[1731020695144,0.0122808,75832.0,75828.0,0.005]
[1731020695356,0.031939,75831.0,75828.0,0.005]
[1731020695566,0.031939,75830.0,75828.0,0.005]
[1731020695797,0.031939,75829.0,75828.0,0.005]
[1731020696040,0.05241162,75829.0,75828.0,0.02456]
[1731020696247,0.681908,75846.0,75835.0,0.01]
[1731020696248,0.88059797,75846.0,75835.0,0.01]
[1731020697093,0.681908,75846.0,75835.0,0.14724102]
[1731020697351,0.681908,75853.0,75835.0,0.24326512]
[1731020697563,0.01376568,75857.0,75852.0,0.005]
[1731020697564,0.681908,75856.0,75852.0,0.005]
[1731020697769,0.69418258,75855.0,75854.0,0.005]
[1731020700611,0.69418258,75855.0,75852.0,0.005]
[1731020700854,0.01227458,75854.0,75852.0,0.005]
[1731020701067,0.75132626,75855.0,75851.0,0.005]
[1731020701068,0.01227458,75853.0,75851.0,0.005]
[1731020701284,0.01227458,75852.0,75842.0,0.01]
[1731020701496,0.01227458,75851.0,75844.0,0.19868997]
[1731020701703,0.01227458,75850.0,75841.0,0.005]
[1731020701912,0.03209818,75851.0,75841.0,0.005]
[1731020701913,0.01227458,75849.0,75841.0,0.005]
[1731020702126,0.01227458,75848.0,75844.0,0.19868997]
[1731020702339,0.681908,75855.0,75842.0,0.005]
[1731020702340,0.01227458,75847.0,75842.0,0.005]
[1731020702551,0.01224966,75847.0,75842.0,0.005]
[1731020702765,0.01224966,75846.0,75842.0,0.01]
[1731020702982,0.02041947,75851.0,75850.0,0.005]
[1731020703193,0.681908,75855.0,75844.0,0.19868997]
[1731020703194,0.681908,75855.0,75854.0,0.005]
[1731020703410,0.01224294,75855.0,75854.0,0.005]
[1731020706352,0.01224294,75864.0,75854.0,0.005]
[1731020706561,0.01224294,75863.0,75854.0,0.005]
[1731020706775,0.01224294,75862.0,75855.0,0.005]
[1731020706991,0.01224294,75861.0,75855.0,0.005]
[1731020707225,0.07827705,75874.0,75855.0,0.005]
[1731020707226,0.6953,75866.0,75865.0,0.015]
[1731020707434,0.03913852,75879.0,75865.0,0.015]
[1731020707435,0.6953,75878.0,75867.0,0.32490485]
[1731020707690,0.19868997,75881.0,75874.0,0.015]
[1731020707691,0.01955799,75877.0,75874.0,0.015]
[1731020707909,0.6953,75880.0,75874.0,0.14724102]
[1731020708140,0.6953,75880.0,75865.0,0.002]
[1731020708141,0.01955542,75879.0,75869.0,0.005]
[1731020708373,0.01955542,75879.0,75853.0,0.19868997]
[1731020708374,0.72707382,75874.0,75862.0,0.19868997]
[1731020708580,0.03177382,75873.0,75862.0,0.20368997]
[1731020708800,0.03177382,75872.0,75862.0,0.20868997]
[1731020709003,0.6953,75874.0,75862.0,0.20368997]
[1731020709004,0.03177382,75871.0,75862.0,0.20368997]
[1731020709219,0.92070485,75874.0,75854.0,0.005]
[1731020709464,0.15342663,75863.0,75849.0,0.005]
[1731020709677,0.02037844,75861.0,75850.0,0.005]
[1731020709891,0.70752706,75862.0,75849.0,0.01]
[1731020709892,0.02037844,75857.0,75849.0,0.01]
[1731020710135,0.6953,75856.0,75852.0,0.005]
[1731020710341,0.03913808,75855.0,75853.0,0.20368997]
[1731020710544,0.71567844,75856.0,75853.0,0.20368997]
[1731020710545,0.01956418,75854.0,75853.0,0.20368997]
[1731020710984,0.01956418,75854.0,75853.0,0.19868997]
[1731020711207,0.01956418,75854.0,75849.0,0.005]
[1731020711431,0.01956418,75853.0,75848.0,0.005]
[1731020711648,0.01222706,75852.0,75849.0,0.005]
[1731020711859,0.01222706,75851.0,75849.0,0.005]
[1731020712071,0.03179124,75850.0,75849.0,0.005]
[1731020712488,0.03179124,75850.0,75848.0,0.005]
[1731020712725,0.03179124,75850.0,75845.0,0.005]
[1731020712726,0.01956418,75850.0,75849.0,0.005]
[1731020712938,0.01959318,75854.0,75849.0,0.005]
[1731020713149,0.01959308,75853.0,75849.0,0.005]
[1731020713385,0.01224567,75850.0,75845.0,0.005]
[1731020713607,0.01224567,75850.0,75842.0,0.005]
[1731020713608,0.01959308,75849.0,75842.0,0.005]
[1731020713819,0.15342663,75847.0,75837.0,0.005]
[1731020714051,0.74673193,75846.0,75845.0,0.19868997]
[1731020714277,0.74673193,75846.0,75845.0,0.1690455]
[1731020715545,0.74673193,75846.0,75838.0,0.005]
[1731020715763,0.05143193,75845.0,75838.0,0.005]
[1731020715971,0.03183875,75844.0,75838.0,0.005]
[1731020716191,0.03183875,75843.0,75838.0,0.005]
[1731020716393,0.6953,75846.0,75838.0,0.005]
[1731020717047,0.01962919,75845.0,75838.0,0.005]
[1731020717266,0.05152662,75845.0,75838.0,0.005]
[1731020717493,0.05153693,75844.0,75838.0,0.005]
[1731020717724,0.03190774,75843.0,75838.0,0.005]
[1731020717942,0.05153693,75842.0,75838.0,0.005]
[1731020718161,0.05153693,75841.0,75838.0,0.005]
[1731020718398,0.05153693,75840.0,75838.0,0.005]
[1731020718654,0.05153693,75839.0,75836.0,0.00167]
[1731020718895,0.05153693,75838.0,75836.0,0.00167]
[1731020719110,0.05153693,75837.0,75836.0,0.00167]
[1731020720886,0.74683693,75837.0,75836.0,0.00167]
[1731020721736,0.96910431,75837.0,75836.0,0.00167]
[1731020721943,0.8791311,75837.0,75836.0,0.00167]
[1731020722910,0.87912055,75837.0,75836.0,0.00167]
[1731020724606,0.87910488,75837.0,75836.0,0.00167]
[1731020725113,0.85945912,75837.0,75836.0,0.00167]
[1731020726279,0.85945482,75837.0,75836.0,0.00167]
[1731020726491,1.24016198,75837.0,75836.0,0.00167]
[1731020726729,1.24016198,75837.0,75810.0,0.00167]
[1731020726730,0.123,75828.0,75824.0,0.19868997]
[1731020726953,0.18715482,75827.0,75826.0,0.19868997]
[1731020727171,0.18715482,75827.0,75810.0,0.00167]
[1731020727172,0.023,75826.0,75810.0,0.00167]
[1731020727394,0.15342663,75816.0,75810.0,0.00167]
[1731020727627,0.20498183,75816.0,75810.0,0.00167]
[1731020727844,0.20498183,75816.0,75812.0,0.19868997]
[1731020727845,0.05154298,75815.0,75812.0,0.19868997]
[1731020728047,0.05154298,75814.0,75810.0,0.00167]
[1731020728256,0.05154298,75813.0,75810.0,0.00167]
[1731020728462,0.05154298,75812.0,75810.0,0.00167]
[1731020728665,0.17269318,75816.0,75810.0,0.00167]
[1731020728666,0.74684298,75811.0,75810.0,0.00167]
[1731020729101,1.23405732,75811.0,75810.0,0.00167]
[1731020729324,1.23405732,75811.0,75793.0,0.00667]
[1731020729325,0.1,75810.0,75793.0,0.00167]
[1731020729526,0.1,75808.0,75804.0,0.19868997]
[1731020729731,0.09077779,75807.0,75793.0,0.00667]
[1731020730104,0.09077779,75807.0,75794.0,0.005]
[1731020730105,0.16414625,75806.0,75794.0,0.005]
[1731020730308,0.16414625,75806.0,75793.0,0.00167]
[1731020730309,0.15342663,75797.0,75793.0,0.00167]
[1731020730452,0.16568192,75797.0,75793.0,0.00167]
[1731020730666,0.70755529,75796.0,75794.0,0.19868997]
[1731020730868,0.70755529,75796.0,75793.0,0.00167]
[1731020730869,0.05147221,75795.0,75793.0,0.00167]
[1731020731053,0.01225529,75794.0,75793.0,0.00167]
[1731020731251,0.01225529,75794.0,75793.0,0.00667]
[1731020731922,0.01225529,75795.0,75794.0,0.005]
[1731020732579,0.10258928,75795.0,75793.0,0.00167]
[1731020732779,0.10258928,75795.0,75794.0,0.005]
[1731020732780,0.01957846,75795.0,75794.0,0.005]
[1731020732978,0.03181504,75795.0,75794.0,0.005]
[1731020733408,0.01223658,75795.0,75794.0,0.005]
[1731020733567,0.03180715,75795.0,75794.0,0.005]
[1731020733949,0.03180715,75795.0,75794.0,0.0585]
[1731020733950,0.01223352,75795.0,75794.0,0.0585]
[1731020734623,0.01223352,75795.0,75794.0,0.059334]
[1731020735531,0.03180447,75795.0,75794.0,0.059334]
[1731020735775,0.01223352,75795.0,75794.0,0.059334]
[1731020735981,0.6953,75808.0,75796.0,0.005]
[1731020735982,0.05137396,75807.0,75796.0,0.005]
[1731020736213,0.03180385,75806.0,75797.0,0.005]
[1731020736438,0.03180385,75806.0,75794.0,0.05740989]
[1731020736439,0.02038568,75802.0,75794.0,0.000834]
[1731020736644,0.03180385,75801.0,75798.0,0.19868997]
[1731020736885,0.03180385,75800.0,75794.0,0.000834]
[1731020737086,0.02038568,75804.0,75799.0,0.00307526]
[1731020737292,0.02038568,75804.0,75794.0,0.000834]
[1731020737293,0.01223276,75799.0,75794.0,0.005834]
[1731020737508,0.01223276,75799.0,75798.0,0.015]
[1731020737719,0.02446785,75799.0,75798.0,0.1396]
[1731020737925,0.02446785,75799.0,75798.0,0.17243552]
[1731020738134,0.02446785,75799.0,75798.0,0.14469333]
[1731020738135,0.01223509,75799.0,75798.0,0.14469333]
[1731020738551,0.01223509,75799.0,75798.0,0.27693435]
[1731020738774,0.01223509,75799.0,75798.0,0.27493435]
[1731020738981,0.01224698,75799.0,75798.0,0.27493435]
[1731020740289,0.03186818,75799.0,75798.0,0.27493435]
[1731020741344,0.05144019,75799.0,75798.0,0.27493435]
[1731020741562,0.05144019,75799.0,75798.0,0.14269333]
[1731020741999,0.05144019,75799.0,75798.0,0.09059333]
[1731020742209,0.05144019,75799.0,75798.0,0.0875]
[1731020742419,0.05144019,75799.0,75798.0,0.0945]
[1731020742628,0.05144019,75799.0,75798.0,0.22474102]
[1731020743042,0.05144019,75799.0,75798.0,0.22770826]
[1731020743466,0.00786818,75799.0,75798.0,0.22970826]
[1731020743670,0.00786818,75799.0,75798.0,0.22770826]
[1731020743912,0.01964413,75801.0,75798.0,0.22770826]
[1731020744092,0.01964413,75804.0,75803.0,0.005]
[1731020744535,0.01964413,75804.0,75803.0,0.00787231]
[1731020744923,0.01964413,75804.0,75803.0,0.005]
[1731020745906,0.01964413,75804.0,75803.0,0.0049]
[1731020747301,0.01964413,75804.0,75803.0,0.0044]
[1731020747517,0.01964413,75804.0,75801.0,0.01]
[1731020747518,0.6953,75805.0,75804.0,0.0044]
[1731020747744,0.24484426,75805.0,75799.0,0.0044]
[1731020747956,0.24484426,75805.0,75797.0,0.01]
[1731020747957,0.01967151,75804.0,75801.0,0.0044]
[1731020748187,0.15342663,75805.0,75801.0,0.0044]
[1731020748188,0.01967151,75803.0,75801.0,0.0044]
[1731020748429,0.01967151,75802.0,75798.0,0.005]
[1731020748657,0.01967151,75801.0,75798.0,0.005]
[1731020748872,0.6953,75807.0,75798.0,0.005]
[1731020748873,0.01967151,75800.0,75798.0,0.005]
[1731020749105,0.0401761,75799.0,75798.0,0.005]
[1731020749326,0.01967151,75799.0,75798.0,0.005]
[1731020750564,0.04019132,75799.0,75798.0,0.005]
[1731020750775,0.01967151,75799.0,75798.0,0.005]
[1731020751217,0.01969959,75799.0,75798.0,0.005]
[1731020752063,0.01969959,75799.0,75795.0,0.01]
[1731020752264,0.04022293,75798.0,75795.0,0.01]
[1731020752495,0.15342663,75799.0,75795.0,0.01]
[1731020752496,0.02052334,75796.0,75795.0,0.01]
[1731020752707,0.01969959,75796.0,75795.0,0.01]
[1731020753138,0.01969959,75796.0,75795.0,0.005]
[1731020753348,0.01969959,75796.0,75794.0,0.005834]
[1731020753563,0.15342663,75805.0,75795.0,0.01]
[1731020753782,0.03942379,75804.0,75795.0,0.005]
[1731020754003,0.03942379,75803.0,75794.0,0.005834]
[1731020754238,0.01971198,75803.0,75794.0,0.005834]
[1731020754458,0.03942407,75802.0,75795.0,0.005]
[1731020754672,0.01945204,75804.0,75794.0,0.000834]
[1731020754673,0.03942407,75801.0,75794.0,0.000834]
[1731020754913,0.15342663,75798.0,75794.0,0.000834]
[1731020755125,0.03942407,75797.0,75794.0,0.000834]
[1731020755313,0.03942407,75796.0,75794.0,0.000834]
[1731020755553,0.05175195,75795.0,75794.0,0.000834]
[1731020755769,0.07226981,75795.0,75794.0,0.000834]
[1731020755979,0.07226981,75795.0,75779.0,0.20018197]
[1731020755980,0.15342663,75786.0,75779.0,0.20018197]
[1731020756210,0.6953,75790.0,75779.0,0.20018197]
[1731020756211,0.15342663,75780.0,75779.0,0.20018197]
[1731020756427,0.72733986,75780.0,75779.0,0.001492]
[1731020756640,0.90047858,75780.0,75779.0,0.001492]
[1731020757064,0.74705195,75780.0,75779.0,0.001492]
[1731020757271,0.72733986,75780.0,75779.0,0.001492]
[1731020757700,0.75938057,75780.0,75779.0,0.008492]
[1731020757906,0.75938057,75780.0,75779.0,0.006492]
[1731020758327,0.75938057,75780.0,75779.0,0.013492]
[1731020758328,0.73966321,75780.0,75779.0,0.013492]
[1731020758532,0.73966321,75780.0,75779.0,0.14573302]
[1731020759629,0.73966321,75780.0,75779.0,0.19433302]
[1731020759630,0.75937527,75780.0,75779.0,0.19433302]
[1731020760244,0.73966321,75780.0,75779.0,0.19433302]
[1731020760450,0.04436321,75780.0,75779.0,0.19233302]
[1731020760876,0.03927911,75795.0,75779.0,0.19233302]
[1731020761084,0.19868997,75796.0,75793.0,0.005]
[1731020761343,0.73965198,75795.0,75793.0,0.005]
[1731020761549,0.73965198,75795.0,75794.0,0.005]
[1731020761550,0.70761997,75795.0,75794.0,0.005]
[1731020761761,0.71501207,75795.0,75794.0,0.005]
[1731020761971,0.73965189,75795.0,75794.0,0.005]
[1731020763857,0.73965148,75795.0,75794.0,0.005]
[1731020764285,0.73965148,75795.0,75794.0,0.0804]
[1731020764505,0.02463941,75795.0,75794.0,0.44420765]
[1731020764706,0.00167,75804.0,75803.0,0.015]
[1731020764920,0.19868997,75808.0,75807.0,0.01]
[1731020765134,0.6953,75809.0,75808.0,0.002]
[1731020765340,0.70760744,75809.0,75808.0,0.16282512]
[1731020765752,0.70760744,75809.0,75808.0,0.16553932]
[1731020765971,0.70760744,75809.0,75808.0,0.17053932]
[1731020766465,0.70760744,75809.0,75808.0,0.14495522]
[1731020766673,0.6953,75809.0,75808.0,0.14495522]
[1731020766896,0.70760239,75809.0,75808.0,0.14495522]
[1731020768594,0.01230239,75809.0,75808.0,0.0127142]
[1731020768802,0.03197839,75809.0,75808.0,0.0127142]
[1731020770075,0.00167,75810.0,75808.0,0.0127142]
[1731020770296,0.03197342,75809.0,75808.0,0.0127142]
[1731020770966,0.03197342,75809.0,75808.0,0.0027142]
[1731020771180,0.03363942,75809.0,75808.0,0.0027142]
[1731020771386,0.07301494,75809.0,75801.0,0.005]
[1731020771609,0.07135378,75808.0,75805.0,0.005]
[1731020771816,0.03197342,75807.0,75805.0,0.005]
[1731020772038,0.04104601,75809.0,75806.0,0.00271473]
[1731020772263,0.07135708,75808.0,75806.0,0.00271473]
[1731020772495,0.03197707,75807.0,75806.0,0.00271473]
[1731020772725,0.03197707,75807.0,75790.0,0.20368997]
[1731020772726,1.0785981,75807.0,75790.0,0.20368997]
[1731020772931,0.05905087,75801.0,75799.0,0.19868997]
[1731020773140,0.05905087,75801.0,75790.0,0.20368997]
[1731020773141,0.25617793,75800.0,75793.0,0.005]
[1731020773350,0.03939282,75796.0,75790.0,0.19868997]
[1731020773558,0.15342663,75791.0,75790.0,0.19868997]
[1731020773766,0.15342663,75791.0,75781.0,0.19868997]
[1731020773767,0.18540756,75791.0,75786.0,0.005]
[1731020774035,0.03198093,75790.0,75787.0,0.005]
[1731020774946,0.89893149,75788.0,75779.0,0.001492]
[1731020775175,0.03939351,75785.0,75782.0,0.19868997]
[1731020775408,0.03939506,75783.0,75779.0,0.001492]
[1731020775615,0.05908751,75780.0,75779.0,0.001492]
[1731020775822,0.78636459,75780.0,75779.0,0.001492]
[1731020776245,0.72727676,75780.0,75779.0,0.001492]
[1731020776467,0.72727676,75780.0,75779.0,0.006492]
[1731020776668,0.70760036,75780.0,75779.0,0.006492]
[1731020777720,0.76663338,75780.0,75779.0,0.001492]
[1731020777930,0.6953,75780.0,75779.0,0.001492]
[1731020778337,0.75436544,75780.0,75779.0,0.001492]
[1731020778546,0.6953,75780.0,75779.0,0.001492]
[1731020778760,0.83969365,75780.0,75779.0,0.001492]
[1731020778991,0.83968572,75780.0,75779.0,0.001492]
[1731020779196,0.005,75778.0,75762.0,0.19868997]
[1731020779401,0.0393557,75774.0,75771.0,0.19868997]
[1731020779608,0.1,75772.0,75762.0,0.19868997]
[1731020779817,0.01228792,75771.0,75762.0,0.19868997]
[1731020780026,0.01228792,75770.0,75762.0,0.19868997]
[1731020780226,0.15342663,75763.0,75762.0,0.19868997]
[1731020780442,0.16571455,75763.0,75758.0,0.01]
[1731020780650,0.01228792,75762.0,75755.0,0.005]
[1731020780854,0.70758792,75761.0,75756.0,0.005]
[1731020780986,0.72724859,75761.0,75756.0,0.005]
[1731020781205,0.72724859,75761.0,75755.0,0.005]
[1731020781375,0.81531611,75761.0,75755.0,0.005]
[1731020781621,0.81531611,75761.0,75752.0,0.005]
[1731020781825,0.81531611,75761.0,75755.0,0.005]
[1731020783767,0.72724859,75761.0,75755.0,0.005]
[1731020783969,0.71224859,75761.0,75755.0,0.005]
[1731020784385,0.71224859,75761.0,75748.0,0.005]
[1731020784780,0.89324859,75761.0,75748.0,0.005]
[1731020784982,0.89324859,75761.0,75749.0,0.005]
[1731020787295,0.89324859,75761.0,75746.0,0.19868997]
[1731020787296,1.02548961,75761.0,75746.0,0.19868997]
[1731020787406,1.02537735,75761.0,75746.0,0.19868997]
[1731020787618,1.18062012,75761.0,75746.0,0.19868997]
[1731020788023,0.25342663,75747.0,75746.0,0.19868997]
[1731020788434,0.26567137,75747.0,75746.0,0.20142975]
[1731020788634,0.26567137,75747.0,75746.0,0.00273978]
[1731020789114,0.26567137,75747.0,75661.0,1.11467838]
[1731020789262,0.002,75736.0,75735.0,0.19868997]
[1731020789462,0.002,75722.0,75714.0,0.13224102]
[1731020789673,0.002,75722.0,75717.0,0.19868997]
[1731020789908,0.002,75722.0,75718.0,0.13224102]
[1731020790117,0.002,75730.0,75719.0,0.00264084]
[1731020790328,0.002,75732.0,75726.0,0.15342663]
[1731020790534,0.19868997,75729.0,75727.0,0.13224102]
[1731020790751,0.002,75732.0,75727.0,0.13224102]
[1731020790976,0.002,75732.0,75728.0,0.0132241]
[1731020791188,0.002,75732.0,75729.0,0.13224102]
[1731020791391,0.19868997,75731.0,75729.0,0.13224102]
[1731020791595,0.002,75732.0,75729.0,0.13224102]
[1731020791836,0.002,75730.0,75729.0,0.13224102]
[1731020792244,0.002,75730.0,75729.0,0.21354102]
[1731020793114,0.002,75730.0,75729.0,0.13224102]
[1731020794051,0.002,75726.0,75725.0,0.0471]
[1731020794254,0.002,75723.0,75722.0,0.0823]
[1731020794452,0.002,75723.0,75722.0,0.21454102]
[1731020796779,0.002,75723.0,75722.0,0.21696916]
[1731020797414,0.002,75727.0,75722.0,0.24344608]
[1731020797669,0.002,75727.0,75723.0,0.13224102]
[1731020797843,0.678808,75734.0,75723.0,0.13224102]
[1731020797844,0.002,75725.0,75724.0,0.00264095]
[1731020798043,0.002,75725.0,75724.0,0.13467915]
[1731020798248,0.002,75725.0,75724.0,0.13224102]
[1731020798498,0.002,75725.0,75724.0,0.13467753]
[1731020798716,0.002,75725.0,75724.0,0.12467753]
[1731020798941,0.002,75725.0,75724.0,0.00243651]
[1731020799253,0.15542663,75725.0,75724.0,0.00243651]
[1731020799478,0.15542663,75725.0,75706.0,0.0463]
[1731020799479,0.002,75707.0,75706.0,0.0463]
[1731020799724,0.002,75703.0,75702.0,0.0792]
[1731020800409,0.002,75699.0,75698.0,0.0463]
[1731020800890,0.002,75699.0,75695.0,0.0766]
[1731020800891,0.002,75696.0,75695.0,0.0766]
[1731020801358,0.002,75696.0,75695.0,0.20884102]
[1731020801581,0.002,75701.0,75695.0,0.20884102]
[1731020801822,0.01226829,75700.0,75695.0,0.20884102]
[1731020802053,0.01226829,75699.0,75696.0,0.13488287]
[1731020802266,0.01226829,75698.0,75696.0,0.13224102]
[1731020802518,0.01226829,75697.0,75696.0,0.13224102]
[1731020802745,0.01226829,75697.0,75696.0,0.15312512]
[1731020802970,0.002,75700.0,75696.0,0.15312512]
[1731020803203,0.002,75702.0,75696.0,0.15312512]
[1731020803448,0.002,75700.0,75696.0,0.15312512]
[1731020803657,0.01227211,75699.0,75696.0,0.15312512]
[1731020803871,0.01227211,75698.0,75697.0,0.02297251]
[1731020804082,0.002,75702.0,75697.0,0.15521353]
[1731020804300,0.002,75699.0,75698.0,0.13224102]
[1731020804794,0.01428149,75699.0,75698.0,0.13224102]
[1731020805974,0.03393586,75699.0,75698.0,0.13224102]
[1731020806199,0.01228149,75699.0,75698.0,0.15312512]
[1731020806418,0.03194019,75699.0,75698.0,0.15312512]
[1731020806651,0.03194019,75699.0,75698.0,0.13224102]
[1731020806848,0.01228149,75699.0,75698.0,0.13224102]
[1731020807039,0.03193957,75699.0,75698.0,0.13224102]
[1731020807912,0.03193957,75699.0,75698.0,0.13478784]
[1731020808043,0.03193957,75699.0,75698.0,0.15592662]
[1731020808257,0.01228149,75699.0,75698.0,0.15592662]
[1731020808647,0.03195354,75699.0,75698.0,0.15592662]
[1731020808918,0.03195354,75699.0,75698.0,0.36059497]
[1731020808919,0.01228149,75699.0,75698.0,0.36059497]
[1731020809121,0.01228149,75699.0,75698.0,0.35795325]
[1731020809315,0.01228149,75699.0,75698.0,0.55915325]
[1731020809515,0.19868997,75706.0,75700.0,0.0782]
[1731020809734,0.19868997,75717.0,75698.0,0.15592662]
[1731020809735,0.19868997,75717.0,75708.0,0.0465]
[1731020809955,0.03197465,75716.0,75710.0,0.1]
[1731020810150,0.03197465,75715.0,75711.0,0.023]
[1731020810269,0.01229794,75714.0,75711.0,0.02554377]
[1731020810485,0.01229794,75713.0,75711.0,0.02554377]
[1731020810696,0.00167,75730.0,75713.0,0.2042]
[1731020810914,0.19868997,75722.0,75715.0,0.1042]
[1731020811116,0.00167,75730.0,75721.0,0.13224102]
[1731020811322,0.03198274,75729.0,75724.0,0.13224102]
[1731020811635,0.03198274,75728.0,75725.0,0.00285933]
[1731020812066,0.01230128,75727.0,75726.0,0.22205105]
[1731020812459,0.01230128,75727.0,75726.0,0.22468693]
[1731020814257,0.00230128,75727.0,75726.0,0.22468693]
[1731020815217,0.00167,75730.0,75726.0,0.22468693]
[1731020815438,0.00167,75730.0,75727.0,0.02246869]
[1731020815642,0.00167,75730.0,75728.0,0.13487783]
[1731020819580,0.00167,75730.0,75729.0,0.00264054]
[1731020819779,0.00167,75730.0,75729.0,0.38428156]
[1731020819979,0.00167,75730.0,75729.0,0.38464857]
[1731020820185,0.00167,75730.0,75729.0,0.40238595]
[1731020822554,0.00167,75730.0,75729.0,0.42538595]
[1731020824309,0.00167,75730.0,75729.0,0.57881258]
[1731020827992,0.00167,75730.0,75729.0,0.73223921]
[1731020828221,0.19868997,75744.0,75743.0,0.28372663]
[1731020828454,0.19868997,75744.0,75743.0,0.55674261]
[1731020828674,0.19868997,75744.0,75743.0,0.55705468]
[1731020828918,0.19868997,75752.0,75744.0,0.123]
[1731020829164,0.19868997,75752.0,75751.0,0.38566765]
[1731020829694,0.19868997,75768.0,75752.0,0.1]
[1731020829969,0.19868997,75768.0,75767.0,0.15342663]
[1731020830490,0.678808,75778.0,75767.0,0.1566421]
[1731020830734,0.678808,75787.0,75775.0,0.15342663]
[1731020830958,0.19868997,75788.0,75764.0,0.0816]
[1731020830959,0.19868997,75777.0,75776.0,0.10263878]
[1731020831226,0.19868997,75788.0,75780.0,0.123]
[1731020831453,0.19868997,75788.0,75784.0,0.13224102]
[1731020831674,0.001666,75793.0,75787.0,0.25342663]
[1731020831909,0.001666,75793.0,75788.0,0.13487955]
[1731020832400,0.001666,75793.0,75791.0,0.13224102]
[1731020832403,0.678808,75803.0,75793.0,0.123]
[1731020832626,0.001666,75804.0,75802.0,0.15342663]
[1731020832890,0.001666,75804.0,75803.0,0.25524102]
[1731020833142,0.678808,75820.0,75804.0,0.023]
[1731020833388,0.678808,75820.0,75805.0,0.13224102]
[1731020833681,0.678808,75820.0,75805.0,0.28950832]
[1731020834550,0.680808,75820.0,75805.0,0.28950832]
[1731020834798,0.678808,75820.0,75805.0,0.44293495]
[1731020835570,0.678808,75820.0,75805.0,0.51469416]
[1731020835790,0.678808,75820.0,75805.0,0.60222754]
[1731020836031,0.678808,75820.0,75805.0,0.59559416]
[1731020836766,0.19868997,75824.0,75805.0,0.59559416]
[1731020837203,0.002,75819.0,75805.0,0.59559416]
[1731020837513,0.19868997,75824.0,75805.0,0.59559416]
[1731020837514,0.002,75820.0,75805.0,0.59559416]
[1731020837754,0.002,75819.0,75805.0,0.59559416]
[1731020838071,0.002,75817.0,75805.0,0.49169416]
[1731020838274,0.002,75815.0,75805.0,0.26650832]
[1731020838477,0.002,75815.0,75805.0,0.13571006]
[1731020838994,0.003666,75809.0,75805.0,0.13571006]
[1731020839182,0.002748,75806.0,75805.0,0.13571006]
[1731020840022,0.002748,75806.0,75805.0,0.13224102]
[1731020840473,0.01493113,75806.0,75805.0,0.00309895]
[1731020840661,0.002748,75806.0,75805.0,0.00309895]
[1731020840846,0.002,75797.0,75790.0,0.1]
[1731020841048,0.002,75797.0,75791.0,0.1658379]
[1731020841248,0.002,75797.0,75791.0,0.16894357]
[1731020842895,0.678808,75804.0,75791.0,0.16894357]
[1731020843100,0.002,75800.0,75791.0,0.16894357]
[1731020843405,0.002,75796.0,75792.0,0.00280296]
[1731020843591,0.002,75796.0,75793.0,0.15910511]
[1731020843763,0.002,75801.0,75793.0,0.15910511]
[1731020843988,0.002,75801.0,75794.0,0.00310096]
[1731020844184,0.002,75801.0,75795.0,0.13224102]
[1731020844390,0.002,75796.0,75795.0,0.13224102]
[1731020844966,0.002,75796.0,75795.0,0.14546512]
[1731020845396,0.002,75796.0,75795.0,0.13224102]
[1731020846192,0.678808,75803.0,75795.0,0.13224102]
[1731020846193,0.002,75797.0,75795.0,0.13224102]
[1731020846398,0.678808,75803.0,75796.0,0.00263837]
[1731020846399,0.002,75802.0,75796.0,0.00263837]
[1731020846612,0.678808,75803.0,75797.0,0.13224102]
[1731020848318,0.005,75800.0,75782.0,0.1]
[1731020848521,0.002,75793.0,75784.0,0.1]
[1731020848724,0.002,75793.0,75785.0,0.00263847]
[1731020849552,0.680808,75805.0,75788.0,0.1]
[1731020849724,0.01422141,75804.0,75788.0,0.1]
[1731020849939,0.002,75804.0,75789.0,0.023]
[1731020850855,0.680808,75805.0,75790.0,0.0026382]
[1731020851264,0.678808,75805.0,75790.0,0.0026382]
[1731020851463,0.000748,75806.0,75802.0,0.22518584]
[1731020851673,0.000748,75806.0,75804.0,0.023]
[1731020851852,0.000748,75806.0,75805.0,0.02547326]
[1731020852309,0.000748,75806.0,75805.0,0.00247326]
[1731020853129,0.000748,75806.0,75798.0,0.023]
[1731020853334,0.000748,75806.0,75805.0,0.00247242]
[1731020853647,0.000748,75806.0,75798.0,0.023]
[1731020853857,0.000748,75806.0,75799.0,0.00247902]
[1731020854486,0.01224765,75805.0,75800.0,0.13224102]
[1731020854656,0.002,75801.0,75783.0,0.03089538]
[1731020854865,0.002,75801.0,75791.0,0.19868997]
[1731020854866,0.002,75792.0,75791.0,0.19868997]
[1731020855070,0.002,75792.0,75791.0,0.13224102]
[1731020855311,0.01425894,75792.0,75791.0,0.13224102]
[1731020855702,0.01425894,75792.0,75770.0,0.0759]
[1731020855913,0.005,75801.0,75781.0,0.19868997]
[1731020855914,0.002,75785.0,75781.0,0.19868997]
[1731020856282,0.01226828,75784.0,75782.0,0.13224102]